fUST/lending_fUST_20250111
["ID","MTS","AMOUNT","RATE_DAILY","PERIOD"]
[348514717,1736598638587,-500.0,0.00019999,2]
[348514718,1736598638596,-500.0,0.00019999,2]
[348514719,1736598638607,-500.0,0.00019999,2]
[348514720,1736598638617,-515.54173199,0.00019999,2]
[348514721,1736598638627,-500.0,0.00019999,2]
[348514722,1736598638638,-500.0,0.00019999,2]
[348514723,1736598638647,-500.0,0.00019999,2]
[348514724,1736598638657,-500.0,0.00019999,2]
[348514725,1736598638666,-500.0,0.00019999,2]
[348514726,1736598638681,-500.0,0.00019999,2]
[348514727,1736598638690,-500.0,0.00019999,2]
[348514728,1736598638700,-500.0,0.00019999,2]
[348514729,1736598638711,-500.0,0.00019999,2]
[348514730,1736598638720,-500.0,0.00019999,2]
[348514731,1736598638729,-500.0,0.00019999,2]
[348514732,1736598638739,-500.0,0.00019999,2]
[348514733,1736598638750,-500.0,0.00019999,2]
[348514734,1736598638759,-500.0,0.00019999,2]
[348514735,1736598638769,-500.0,0.00019999,2]
[348514736,1736598638779,-500.0,0.00019999,2]
[348514737,1736598638788,-500.0,0.00019999,2]
[348514738,1736598638798,-500.0,0.00019999,2]
[348514739,1736598638808,-500.0,0.00019999,2]
[348514740,1736598638817,-500.0,0.00019999,2]
[348514741,1736598638826,-500.0,0.00019999,2]
[348514742,1736598638836,-500.0,0.00019999,2]
[348514743,1736598638845,-170.87292233,0.00019999,2]
[348514781,1736599189252,54867.002037,0.00025,120]
[348514782,1736599562430,211.363523,0.00013973,2]
[348514817,1736599832395,-297.76921,0.00019548,2]
[348514819,1736599832405,-241.5512998,0.00019855,2]
[348514821,1736599832414,-300.0,0.00019896,2]
[348514823,1736599832424,-1587.42605925,0.00019896,2]
[348514833,1736599832499,-546.87002,0.00019896,2]
[348514839,1736599832557,-74.70392075,0.00019896,2]
[348514841,1736599832567,-1172.84608425,0.00019897,2]
[348514893,1736599838243,-3316.96993535,0.00019897,2]
[348518514,1736600562150,213.190236,0.00013973,2]
[348518570,1736601032729,-650.55499545,0.000189,2]
[348518573,1736601032741,-258.44500455,0.00018988,2]
[348518575,1736601032756,-39.32420545,0.00018988,2]
[348518578,1736601032768,-363.685209,0.00019,2]
[348518580,1736601032780,-179.46915085,0.000194,2]
[348518582,1736601032792,-1331.6866975,0.00019448,2]
[348518585,1736601032804,-151.0,0.00019741,2]
[348518587,1736601032815,-300.0,0.00019752,2]
[348518590,1736601032833,-324.04931182,0.00019753,5]
[348518592,1736601032847,-301.10836421,0.00019753,5]
[348518594,1736601032857,-4435.68741693,0.00019753,2]
[348518613,1736601033021,-20464.31258307,0.00019753,2]
[348518615,1736601033032,-466.2956719,0.00019826,2]
[348518617,1736601033041,-307.97085337,0.00019914,2]
[348518619,1736601033051,-611.77916174,0.0002,30]
[348518621,1736601033060,-756.0,0.0002,2]
[348518623,1736601033070,-199.817,0.00020014,2]
[348518625,1736601033080,-152.0,0.00020032,2]
[348518627,1736601033090,-343.077,0.0002033,2]
[348518629,1736601033099,-213.190236,0.00020447,2]
[348518631,1736601033109,-178.58,0.00020532,2]
[348518633,1736601033118,-465.0647836,0.00020818,2]
[348518635,1736601033128,-309.2590886,0.00020904,2]
[348518637,1736601033138,-154.84,0.00020922,2]
[348518639,1736601033148,-2098.01320208,0.00021,3]
[348518641,1736601033157,-1000.0,0.00021174,2]
[348518643,1736601033169,-1000.0,0.00021193,2]
[348518645,1736601033180,-221.5725711,0.00021199,2]
[348518647,1736601033190,-3050.69497415,0.000212,2]
[348518649,1736601033199,-178.52009132,0.00021292,2]
[348518651,1736601033208,-499.999999,0.0002138,2]
[348518653,1736601033218,-500.0,0.00021399,2]
[348518655,1736601033227,-623.32856977,0.00021399,2]
[348518657,1736601033236,-500.0,0.00021399,2]
[348518659,1736601033246,-83.31716495,0.00021399,2]
[348518661,1736601033259,-416.68283505,0.00021399,2]
[348518663,1736601033268,-183.31716495,0.000214,5]
[348518666,1736601033283,-8704.29994221,0.000214,5]
[348518750,1736601038379,-307.9708533,0.00020431,2]
[348518752,1736601038389,-394.0,0.00020594,2]
[348518754,1736601038399,-500.0,0.00021389,2]
[348518756,1736601038409,-500.0,0.00021389,2]
[348518758,1736601038418,-500.0,0.00021389,2]
[348518760,1736601038427,-500.0,0.00021389,2]
[348518762,1736601038437,-189.39374998,0.00021389,2]
[348518764,1736601038446,-500.0,0.00021389,2]
[348518766,1736601038456,-500.0,0.00021389,2]
[348518768,1736601038465,-500.0,0.00021389,2]
[348518770,1736601038475,-500.0,0.00021389,2]
[348518772,1736601038484,-500.0,0.00021389,2]
[348518774,1736601038494,-500.0,0.00021389,2]
[348518776,1736601038503,-500.0,0.00021389,2]
[348518778,1736601038512,-500.0,0.00021389,2]
[348518780,1736601038522,-509.36238768,0.00021389,2]
[348518782,1736601038531,-500.0,0.00021389,2]
[348518784,1736601038540,-500.0,0.00021389,2]
[348518786,1736601038550,-500.0,0.00021389,2]
[348518788,1736601038559,-355.93063197,0.00021389,2]
[348518790,1736601038568,-500.0,0.00021389,2]
[348518792,1736601038578,-500.0,0.00021389,2]
[348518794,1736601038587,-500.0,0.00021389,2]
[348518796,1736601038596,-175.76728028,0.00021389,2]
[348518798,1736601038606,-500.0,0.00021389,2]
[348518800,1736601038615,-500.0,0.00021389,2]
[348518802,1736601038624,-500.0,0.00021389,2]
[348518804,1736601038634,-500.0,0.00021389,2]
[348518806,1736601038643,-500.0,0.00021389,2]
[348518808,1736601038652,-500.0,0.00021389,2]
[348518810,1736601038662,-500.0,0.00021389,2]
[348518812,1736601038671,-500.0,0.00021389,2]
[348518814,1736601038680,-500.0,0.00021389,2]
[348518816,1736601038690,-500.0,0.00021389,2]
[348518818,1736601038699,-500.0,0.00021389,2]
[348518820,1736601038709,-500.0,0.00021389,2]
[348518822,1736601038719,-500.0,0.00021389,2]
[348518824,1736601038729,-500.0,0.00021389,2]
[348518826,1736601038738,-500.0,0.00021389,2]
[348518828,1736601038747,-500.0,0.00021389,2]
[348518830,1736601038757,-500.0,0.00021389,2]
[348518832,1736601038767,-500.0,0.00021389,2]
[348518834,1736601038776,-500.0,0.00021389,2]
[348518836,1736601038786,-500.0,0.00021389,2]
[348518838,1736601038796,-500.0,0.00021389,2]
[348518840,1736601038805,-500.0,0.00021389,2]
[348518842,1736601038815,-500.0,0.00021389,2]
[348518844,1736601038825,-500.0,0.00021389,2]
[348518846,1736601038834,-500.0,0.00021389,2]
[348518848,1736601038844,-500.0,0.00021389,2]
[348518850,1736601038853,-500.0,0.00021389,2]
[348518852,1736601038863,-500.0,0.00021389,2]
[348518854,1736601038872,-500.0,0.00021389,2]
[348518857,1736601038882,-500.0,0.00021389,2]
[348518859,1736601038892,-500.0,0.00021389,2]
[348518861,1736601038902,-500.0,0.00021389,2]
[348518863,1736601038912,-500.0,0.00021389,2]
[348518865,1736601038922,-500.0,0.00021389,2]
[348518867,1736601038932,-500.0,0.00021389,2]
[348518869,1736601038943,-500.0,0.00021389,2]
[348518871,1736601038955,-500.0,0.00021389,2]
[348518873,1736601038964,-500.0,0.00021389,2]
[348518875,1736601038974,-500.0,0.00021389,2]
[348518877,1736601038984,-500.0,0.00021389,2]
[348518880,1736601038994,-500.0,0.00021389,2]
[348518882,1736601039005,-500.0,0.00021389,2]
[348518884,1736601039015,-500.0,0.00021389,2]
[348518886,1736601039024,-500.0,0.00021389,2]
[348518888,1736601039034,-500.0,0.00021389,2]
[348518890,1736601039044,-500.0,0.00021389,2]
[348518892,1736601039054,-140346.70341946,0.000214,5]
[348518895,1736601039070,-1722.3396068,0.000214,5]
[348518897,1736601039082,-1497.359927,0.000214,5]
[348518900,1736601039097,-42222.45982366,0.000214,5]
[348519355,1736601043501,-307.9708533,0.00020947,2]
[348519357,1736601043510,-196.46706037,0.000214,5]
[348519362,1736601043556,-7745.12786381,0.000214,5]
[348520226,1736601065761,1006.09520516,0.00013,5]
[348520228,1736601703736,191.871212,0.00013973,2]
[348520258,1736602232765,-433.7033303,0.000189,2]
[348520260,1736602232776,-302.66710253,0.00019,2]
[348520262,1736602232786,-4871.02144642,0.0002,2]
[348520264,1736602232796,-192.48178333,0.0002023,2]
[348520266,1736602232805,-300.0,0.00020251,2]
[348520268,1736602232814,-24900.0,0.00020252,2]
[348520270,1736602232824,-328.65,0.0002033,2]
[348520272,1736602232833,-294.59,0.00020391,2]
[348520273,1736602232843,-191.871212,0.00020447,2]
[348520274,1736602232854,-192.48178331,0.00020701,2]
[348520275,1736602232863,-192.48178331,0.00021172,2]
[348520276,1736602232873,-159.854,0.000213,2]
[348520277,1736602232882,-153.0,0.000213,2]
[348520278,1736602232892,-271.44039999,0.000213,2]
[348520279,1736602232902,-2081.0,0.00021337,2]
[348520280,1736602232911,-535.0,0.00021337,2]
[348520281,1736602232920,-2317.0,0.00021337,2]
[348520282,1736602232930,-394.0,0.00021337,2]
[348520283,1736602232940,-154.32,0.00021337,2]
[348520284,1736602232951,-500.0,0.00021392,2]
[348520285,1736602232967,-193.00397439,0.00021392,2]
[348520286,1736602232977,-500.0,0.00021392,2]
[348520287,1736602232987,-500.0,0.00021392,2]
[348520288,1736602232996,-500.0,0.00021392,2]
[348520289,1736602233005,-506.37838115,0.00021399,2]
[348520290,1736602233015,-162.02465591,0.000214,5]
[348520291,1736602233024,-374920.40032554,0.000214,5]
[348520292,1736602233036,-12644.10635429,0.000214,5]
[348520293,1736602233048,-345.28250155,0.000214,5]
[348520294,1736602233076,-477.58602924,0.000214,5]
[348520298,1736602238633,-500.0,0.00021391,2]
[348520299,1736602238643,-243.66710827,0.00021391,2]
[348520300,1736602238652,-596.29164056,0.00021391,2]
[348520301,1736602238661,-500.0,0.00021391,2]
[348520302,1736602238670,-500.0,0.00021391,2]
[348520303,1736602238679,-297.92376594,0.00021391,2]
[348520304,1736602238688,-500.0,0.00021391,2]
[348520305,1736602238698,-500.0,0.00021391,2]
[348520307,1736602238706,-500.0,0.00021391,2]
[348520309,1736602238718,-500.0,0.00021391,2]
[348520311,1736602238727,-500.0,0.00021391,2]
[348520313,1736602238736,-500.0,0.00021391,2]
[348520315,1736602238746,-500.0,0.00021391,2]
[348520316,1736602238755,-500.0,0.00021391,2]
[348520317,1736602238765,-500.0,0.00021391,2]
[348520318,1736602238774,-500.0,0.00021391,2]
[348520319,1736602238783,-500.0,0.00021391,2]
[348520320,1736602238792,-500.0,0.00021391,2]
[348520321,1736602238800,-500.0,0.00021391,2]
[348520322,1736602238810,-500.0,0.00021391,2]
[348520323,1736602238819,-500.0,0.00021391,2]
[348520324,1736602238829,-500.0,0.00021391,2]
[348520325,1736602238838,-249.56815899,0.00021391,2]
[348520377,1736602240865,-250.43184101,0.00021391,2]
[348520379,1736602240875,-500.0,0.00021391,2]
[348520381,1736602240884,-252.48148124,0.00021391,2]
[348520663,1736602243706,-247.51851876,0.00021391,2]
[348520665,1736602243715,-281.72148124,0.00021391,2]
[348520667,1736602243727,-218.27851876,0.00021391,2]
[348520669,1736602243736,-500.0,0.00021391,2]
[348520671,1736602243746,-500.0,0.00021391,2]
[348520673,1736602243755,-370.19722799,0.00021391,2]
[348520675,1736602243767,-129.80277201,0.00021391,2]
[348520677,1736602243777,-370.19722799,0.00021391,2]
[348520819,1736602246601,-129.80277201,0.00021391,2]
[348520821,1736602246611,-500.0,0.00021391,2]
[348520823,1736602246620,-125.19722799,0.00021391,2]
[348520826,1736602246632,-288.42036095,0.00021391,2]
[348520828,1736602246641,-10065.12074409,0.000214,5]
[348520835,1736602246704,-1283.88645771,0.000214,5]
[348520842,1736602246766,-29397.83496158,0.000214,5]
[348522037,1736602353831,160.0,0.00023151,120]
[348522041,1736602714400,192.684091,0.00013973,2]
[348522042,1736603130538,10959.72921911,0.00025,120]
[348522043,1736603191112,-373.44715023,0.000193,2]
[348522044,1736603191133,-344.66823493,0.000193,2]
[348522045,1736603191155,-340.38,0.0002033,2]
[348522046,1736603191176,-300.0,0.00020334,2]
[348522047,1736603191200,-10444.89414884,0.00020335,2]
[348522048,1736603252109,-300.0,0.00020334,2]
[348522049,1736603252133,-14455.10585116,0.00020335,2]
[348522050,1736603252155,-192.684091,0.00020447,2]
[348522051,1736603252177,-340.45011987,0.00021158,2]
[348522052,1736603252199,-174.8940028,0.00021185,2]
[348522053,1736603252220,-154.0,0.00021202,2]
[348522054,1736603252241,-154.0,0.00021202,2]
[348522055,1736603252261,-154.0,0.00021202,2]
[348522056,1736603252283,-154.0,0.00021202,2]
[348522057,1736603252304,-154.0,0.00021202,2]
[348522058,1736603252325,-249.51,0.00021202,2]
[348522059,1736603252348,-2549.57709106,0.00021244,2]
[348522060,1736603252369,-150.0,0.00021258,2]
[348522061,1736603252391,-394.0,0.00021258,2]
[348522062,1736603252412,-2115.666,0.00021258,2]
[348522063,1736603252433,-535.0,0.00021258,2]
[348522064,1736603252454,-2317.0,0.00021258,2]
[348522065,1736603252477,-168.5,0.00021274,2]
[348522066,1736603252498,-1308.13523188,0.000213,2]
[348522067,1736603252520,-500.0,0.00021373,2]
[348522068,1736603252542,-268.70250554,0.00021373,2]
[348522069,1736603252561,-500.54104798,0.00021373,2]
[348522070,1736603252582,-500.0,0.00021373,2]
[348522071,1736603252602,-488.32100342,0.00021373,2]
[348522072,1736603252624,-554.39030955,0.00021373,2]
[348522073,1736603252644,-420.8505941,0.00021373,2]
[348522074,1736603252665,-152.29954544,0.00021373,2]
[348522075,1736603252686,-160.0,0.00021373,2]
[348522076,1736603252706,-152.0,0.00021373,2]
[348522077,1736603252728,-159.5,0.00021373,2]
[348522078,1736603252748,-167.5,0.00021373,2]
[348522079,1736603252770,-500.0,0.00021373,2]
[348522080,1736603252792,-500.0,0.00021373,2]
[348522081,1736603252815,-503.87768832,0.00021373,2]
[348522082,1736603252837,-151.0,0.00021398,2]
[348522083,1736603252860,-207.41188561,0.00021399,2]
[348522084,1736603252884,-500.0,0.00021399,2]
[348522085,1736603253026,-500.0,0.00021399,2]
[348522086,1736603253052,-500.0,0.00021399,2]
[348522087,1736603253077,-500.0,0.00021399,2]
[348522088,1736603253102,-500.0,0.00021399,2]
[348522089,1736603253126,-500.0,0.00021399,2]
[348522090,1736603253152,-500.0,0.00021399,2]
[348522091,1736603253176,-152.09087857,0.00021399,2]
[348522092,1736603253204,-500.0,0.00021399,2]
[348522093,1736603253234,-500.0,0.00021399,2]
[348522094,1736603253261,-500.0,0.00021399,2]
[348522095,1736603253285,-500.0,0.00021399,2]
[348522096,1736603253313,-500.0,0.00021399,2]
[348522097,1736603253337,-499.0,0.00021399,2]
[348522098,1736603253361,-162.02465591,0.000214,5]
[348522099,1736603253387,-34267.54596391,0.000214,5]
[348522136,1736603432667,-174.8940029,0.00021185,2]
[348522137,1736603432678,-159.55194917,0.000212,2]
[348522138,1736603432687,-159.55194916,0.00021225,2]
[348522140,1736603432698,-159.55194916,0.0002125,2]
[348522142,1736603432708,-150.098,0.00021258,2]
[348522144,1736603432717,-159.55194916,0.00021274,2]
[348522146,1736603432727,-159.55194916,0.00021299,2]
[348522147,1736603432737,-297.89385486,0.000213,2]
[348522148,1736603432747,-210.16266731,0.00021398,2]
[348522149,1736603432756,-300.0,0.00021399,2]
[348522150,1736603432766,-191.93388121,0.000214,5]
[348522307,1736603437847,-394.0,0.00021258,2]
[348522309,1736603437858,-68740.54262738,0.000214,5]
[348522582,1736603440399,-8109.73094068,0.000214,5]
[348522584,1736603440411,-37673.01146154,0.000214,5]
[348522788,1736603442908,-294320.52776485,0.000214,5]
[348522795,1736603442963,-1311.487726,0.000214,5]
[348523018,1736603445818,-18190.0,0.000214,5]
[348523024,1736603445876,-552.53841859,0.000214,5]
[348525040,1736603592926,193.415682,0.00013973,2]
[348525043,1736603956512,187.5,0.000138,120]
[348525048,1736604589899,183.744897,0.00013973,2]
[348525096,1736604632273,-248.96476682,0.000189,2]
[348525097,1736604632283,-107.04024498,0.00019749,2]
[348525099,1736604632295,-6210.07066404,0.00019749,2]
[348525165,1736604637968,-18582.88909098,0.00019749,2]
[348525167,1736604637978,-3423.0424788,0.00019793,11]
[348525169,1736604637987,-881.0,0.00020072,2]
[348525171,1736604637996,-326.216,0.0002033,2]
[348525173,1736604638005,-194.276,0.00020339,2]
[348525175,1736604638014,-300.0,0.00020339,2]
[348525177,1736604638023,-183.744897,0.00020447,2]
[348525179,1736604638033,-178.0,0.00020913,2]
[348525181,1736604638043,-178.0,0.00020913,2]
[348525183,1736604638053,-465.11001727,0.00021113,2]
[348525185,1736604638062,-150.0,0.00021258,2]
[348525188,1736604638072,-150.0,0.00021258,2]
[348525190,1736604638081,-154.0,0.0002126,2]
[348525192,1736604638091,-154.0,0.0002126,2]
[348525194,1736604638100,-154.0,0.0002126,2]
[348525195,1736604638109,-154.0,0.0002126,2]
[348525197,1736604638118,-154.0,0.0002126,2]
[348525199,1736604638128,-154.0,0.0002126,2]
[348525200,1736604638137,-154.0,0.0002126,2]
[348525201,1736604638147,-154.0,0.0002126,2]
[348525202,1736604638156,-154.0,0.0002126,2]
[348525204,1736604638165,-154.0,0.0002126,2]
[348525206,1736604638175,-154.0,0.0002126,2]
[348525208,1736604638184,-154.0,0.0002126,2]
[348525210,1736604638194,-154.0,0.0002126,2]
[348525213,1736604638203,-154.0,0.0002126,2]
[348525216,1736604638212,-154.0,0.0002126,2]
[348525219,1736604638221,-154.0,0.0002126,2]
[348525222,1736604638231,-154.0,0.0002126,2]
[348525225,1736604638241,-154.0,0.0002126,2]
[348525226,1736604638251,-154.0,0.0002126,2]
[348525227,1736604638262,-154.0,0.0002126,2]
[348525228,1736604638272,-224.0,0.0002126,2]
[348525229,1736604638284,-350.54684361,0.000213,2]
[348525230,1736604638295,-172.27198921,0.00021399,2]
[348525231,1736604638306,-180.36960784,0.00021399,2]
[348525232,1736604638317,-517.58351638,0.00021399,2]
[348525233,1736604638330,-500.0,0.00021399,2]
[348525234,1736604638340,-14649.13602721,0.000214,5]
[348525235,1736604638389,-6797.06794671,0.000214,5]
[348525236,1736604638400,-9703.00000001,0.000214,5]
[348525237,1736604638411,-4339.68439942,0.000214,5]
[348525238,1736604638423,-2139.4034361,0.000214,5]
[348525239,1736604638438,-8244.69795367,0.000214,5]
[348525240,1736604638449,-18430.06867981,0.000214,5]
[348525389,1736604640364,-98907.60233392,0.000214,5]
[348525390,1736604640374,-13097.33,0.000214,2]
[348525391,1736604640384,-14014.57,0.000214,2]
[348525392,1736604640393,-4909.11,0.000214,2]
[348525393,1736604640403,-521.0498208,0.000214,5]
[348525394,1736604640413,-500.0,0.000214,5]
[348525395,1736604640427,-257.52860533,0.000214,5]
[348525396,1736604640436,-500.0,0.000214,5]
[348525397,1736604640446,-500.0,0.000214,5]
[348525398,1736604640456,-152.40967308,0.000214,5]
[348525399,1736604640465,-188.0,0.000214,2]
[348525400,1736604640474,-151.0,0.000214,2]
[348525401,1736604640483,-151.0,0.000214,2]
[348525402,1736604640493,-151.0,0.000214,2]
[348525403,1736604640503,-151.0,0.000214,2]
[348525404,1736604640513,-154.33,0.000214,2]
[348525405,1736604640522,-503.10018197,0.000214,2]
[348525406,1736604640532,-500.0,0.000214,2]
[348525407,1736604640541,-5000.0,0.00021505,7]
[348525408,1736604640551,-600.0,0.00021549,2]
[348525409,1736604640560,-881.0,0.00021678,4]
[348525410,1736604640570,-322.88489398,0.0002171,2]
[348525411,1736604640580,-602.73203339,0.00021774,2]
[348525412,1736604640589,-466.89265057,0.00021817,2]
[348525413,1736604640598,-151.0,0.00021817,2]
[348525414,1736604640608,-151.0,0.00021817,2]
[348525415,1736604640618,-200.72938925,0.000219,2]
[348525416,1736604640627,-151.0,0.00021904,2]
[348525417,1736604640636,-151.0,0.00021917,2]
[348525418,1736604640645,-151.0,0.00021917,2]
[348525419,1736604640655,-151.0,0.00021917,2]
[348525420,1736604640665,-151.0,0.00021917,2]
[348525421,1736604640675,-151.0,0.00021917,2]
[348525422,1736604640684,-151.0,0.00021917,2]
[348525423,1736604640694,-151.0,0.00021917,2]
[348525424,1736604640703,-151.0,0.00021917,2]
[348525425,1736604640713,-151.0,0.00021917,2]
[348525426,1736604640722,-151.0,0.00021917,2]
[348525427,1736604640732,-151.0,0.00021917,2]
[348525428,1736604640742,-151.0,0.00021917,2]
[348525429,1736604640751,-151.0,0.00021917,2]
[348525430,1736604640760,-154.503641,0.00021917,2]
[348525431,1736604640771,-220.757856,0.00021917,2]
[348525432,1736604640781,-151.0,0.00021917,2]
[348525433,1736604640791,-555.19,0.00021917,3]
[348525434,1736604640801,-272.71656,0.00021917,2]
[348525435,1736604640810,-272.71656,0.00021917,2]
[348525436,1736604640820,-272.71656,0.00021917,2]
[348525437,1736604640829,-272.71656,0.00021917,2]
[348525438,1736604640839,-272.71656,0.00021917,2]
[348525439,1736604640848,-272.71656,0.00021917,2]
[348525440,1736604640857,-272.71656,0.00021917,2]
[348525441,1736604640867,-272.71656,0.00021917,2]
[348525442,1736604640876,-272.71656,0.00021917,2]
[348525443,1736604640886,-272.71656,0.00021917,2]
[348525444,1736604640895,-272.71656,0.00021917,2]
[348525445,1736604640904,-272.71656,0.00021917,2]
[348525446,1736604640915,-272.71656,0.00021917,2]
[348525447,1736604641042,-272.71656,0.00021917,2]
[348525448,1736604641054,-272.71656,0.00021917,2]
[348525449,1736604641064,-272.71656,0.00021917,2]
[348525450,1736604641074,-272.71656,0.00021917,2]
[348525451,1736604641083,-272.71656,0.00021917,2]
[348525452,1736604641093,-272.71656,0.00021917,2]
[348525453,1736604641103,-272.71657,0.00021917,2]
[348525454,1736604641112,-500.0,0.00021917,3]
[348525455,1736604641121,-500.0,0.00021917,3]
[348525456,1736604641130,-151.0,0.00021917,2]
[348525457,1736604641139,-151.0,0.00021917,2]
[348525458,1736604641149,-151.0,0.00021917,2]
[348525459,1736604641158,-158.020237,0.00021917,2]
[348525460,1736604641168,-151.0,0.00021917,2]
[348525461,1736604641178,-151.0,0.00021917,2]
[348525462,1736604641188,-151.0,0.00021917,2]
[348525463,1736604641197,-151.0,0.00021917,2]
[348525464,1736604641207,-151.0,0.00021917,2]
[348525465,1736604641217,-151.0,0.00021917,2]
[348525466,1736604641227,-151.0,0.00021917,2]
[348525467,1736604641237,-151.0,0.00021917,2]
[348525468,1736604641247,-151.0,0.00021917,2]
[348525469,1736604641256,-500.0,0.00021917,3]
[348525470,1736604641266,-500.0,0.00021917,3]
[348525471,1736604641276,-500.0,0.00021917,3]
[348525472,1736604641286,-1663.72,0.00021917,3]
[348525473,1736604641296,-1663.72,0.00021917,3]
[348525474,1736604641307,-1663.72,0.00021917,3]
[348525475,1736604641317,-1663.72,0.00021917,3]
[348525476,1736604641330,-1663.72,0.00021917,3]
[348525477,1736604641340,-1663.72,0.00021917,3]
[348525478,1736604641349,-1663.72,0.00021917,3]
[348525479,1736604641359,-1663.72,0.00021917,3]
[348525480,1736604641368,-1663.72,0.00021917,3]
[348525481,1736604641378,-1663.72,0.00021917,3]
[348525482,1736604641387,-1663.72,0.00021917,3]
[348525483,1736604641396,-1663.72,0.00021917,3]
[348525484,1736604641406,-1663.72,0.00021917,3]
[348525485,1736604641417,-1663.72,0.00021917,3]
[348525486,1736604641426,-1663.72,0.00021917,3]
[348525487,1736604641434,-1663.72,0.00021917,3]
[348525488,1736604641444,-503.18845023,0.00021917,3]
[348525489,1736604641453,-1663.72,0.00021917,3]
[348525490,1736604641463,-1663.72,0.00021917,3]
[348525491,1736604641472,-1663.72,0.00021917,3]
[348525492,1736604641481,-1663.72,0.00021917,3]
[348525493,1736604641491,-1663.72,0.00021917,3]
[348525494,1736604641500,-1663.72,0.00021917,3]
[348525495,1736604641509,-1663.72,0.00021917,3]
[348525496,1736604641519,-1663.87040907,0.00021917,3]
[348525497,1736604641528,-500.0,0.00021917,3]
[348525498,1736604641538,-500.0,0.00021917,3]
[348525499,1736604641547,-614.57281206,0.00021917,3]
[348525500,1736604641557,-204.20621423,0.00021917,3]
[348525501,1736604641567,-500.0,0.00021917,3]
[348525502,1736604641576,-1204.61,0.00021917,3]
[348525503,1736604641585,-500.0,0.00021917,3]
[348525504,1736604641594,-500.0,0.00021917,3]
[348525505,1736604641603,-500.0,0.00021917,3]
[348525506,1736604641613,-151.0,0.00021917,2]
[348525507,1736604641623,-151.0,0.00021917,2]
[348525508,1736604641633,-151.0,0.00021917,2]
[348525509,1736604641643,-151.0,0.00021917,2]
[348525510,1736604641653,-500.0,0.00021917,3]
[348525511,1736604641663,-500.0,0.00021917,3]
[348525512,1736604641672,-500.0,0.00021917,3]
[348525513,1736604641682,-515.54050031,0.00021917,3]
[348525514,1736604641692,-500.0,0.00021917,3]
[348525515,1736604641702,-500.0,0.00021917,3]
[348525516,1736604641712,-500.0,0.00021917,3]
[348525517,1736604641723,-500.0,0.00021917,3]
[348525518,1736604641734,-500.48139971,0.00021917,3]
[348525519,1736604641743,-500.0,0.00021917,3]
[348525520,1736604641753,-500.0,0.00021917,3]
[348525521,1736604641763,-500.0,0.00021917,3]
[348525522,1736604641774,-267.01506586,0.00021917,3]
[348525523,1736604641784,-500.0,0.00021917,3]
[348525524,1736604641794,-769.61,0.00021917,3]
[348525525,1736604641803,-500.78599156,0.00021917,3]
[348525526,1736604641813,-614.39482546,0.00021917,3]
[348525527,1736604641822,-502.98158401,0.00021917,2]
[348525528,1736604641832,-500.0,0.00021917,3]
[348525529,1736604641842,-500.0,0.00021917,3]
[348525530,1736604641852,-151.0,0.00021917,2]
[348525531,1736604641862,-500.51000536,0.00021917,3]
[348525532,1736604641871,-151.0,0.00021917,2]